[Event "Early-Titled-Tuesday-Blitz-March-19-2024"]
[Site "Chess.com"]
[Date "2024.03.19"]
[Round "1"]
[White "viktorgen2021"]
[Black "AlexeiShirov"]
[Result "0-1"]
[WhiteElo "2482"]
[BlackElo "2860"]
[TimeControl "180+1"]
[EndTime "8:07:06 PDT"]
[Termination "AlexeiShirov won by resignation"]

1. d4 {[%clk 0:03:00.9]} 1... d5 {[%clk 0:02:58.9]} 2. c4 {[%clk 0:02:55.4]}
2... c6 {[%clk 0:02:58]} 3. Nf3 {[%clk 0:02:54.7]} 3... Nf6 {[%clk 0:02:57]} 4.
Nc3 {[%clk 0:02:50.1]} 4... e6 {[%clk 0:02:55.9]} 5. e3 {[%clk 0:02:48.6]} 5...
Nbd7 {[%clk 0:02:54.6]} 6. Bd3 {[%clk 0:02:48.6]} 6... dxc4 {[%clk 0:02:53.1]}
7. Bxc4 {[%clk 0:02:49.5]} 7... b5 {[%clk 0:02:52.6]} 8. Bd3 {[%clk 0:02:49.1]}
8... Bb7 {[%clk 0:02:52.1]} 9. O-O {[%clk 0:02:46.6]} 9... a6 {[%clk 0:02:51.4]}
10. Ne4 {[%clk 0:02:40]} 10... c5 {[%clk 0:02:49.3]} 11. Nxf6+ {[%clk
0:02:37.2]} 11... Qxf6 {[%clk 0:02:43]} 12. b3 {[%clk 0:02:28.1]} 12... cxd4
{[%clk 0:02:38.7]} 13. exd4 {[%clk 0:02:11]} 13... Bxf3 {[%clk 0:02:36.6]} 14.
Qxf3 {[%clk 0:02:08]} 14... Qxf3 {[%clk 0:02:35.5]} 15. gxf3 {[%clk 0:02:08.9]}
15... Bd6 {[%clk 0:02:34.2]} 16. Bb2 {[%clk 0:02:00.1]} 16... Ke7 {[%clk
0:02:28.1]} 17. Rac1 {[%clk 0:01:58.5]} 17... Rhc8 {[%clk 0:02:20.3]} 18. a4
{[%clk 0:01:56.8]} 18... bxa4 {[%clk 0:02:18.5]} 19. bxa4 {[%clk 0:01:55]} 19...
a5 {[%clk 0:02:18]} 20. Bb5 {[%clk 0:01:48.7]} 20... Nf6 {[%clk 0:02:17.1]} 21.
Rxc8 {[%clk 0:01:40.2]} 21... Rxc8 {[%clk 0:02:16.4]} 22. Rc1 {[%clk 0:01:40.8]}
22... Rxc1+ {[%clk 0:02:15.2]} 23. Bxc1 {[%clk 0:01:31.6]} 23... Nd5 {[%clk
0:02:14.3]} 24. Bb2 {[%clk 0:01:26.1]} 24... Bb4 {[%clk 0:02:13.3]} 25. Kg2
{[%clk 0:01:24.4]} 25... Kd6 {[%clk 0:02:08.8]} 26. Kg3 {[%clk 0:01:22.8]} 26...
f6 {[%clk 0:02:06.2]} 27. Bd3 {[%clk 0:01:19.7]} 27... g6 {[%clk 0:02:04.9]} 28.
h4 {[%clk 0:01:19.2]} 28... Kc7 {[%clk 0:01:57.2]} 29. h5 {[%clk 0:01:17.4]}
29... Bd6+ {[%clk 0:01:56.4]} 30. Kh4 {[%clk 0:01:06.4]} 30... g5+ {[%clk
0:01:55.6]} 31. Kg4 {[%clk 0:01:01.8]} 31... h6 {[%clk 0:01:54.9]} 32. Bc4
{[%clk 0:01:00.4]} 32... f5+ {[%clk 0:01:52.6]} 33. Kh3 {[%clk 0:00:59.2]} 33...
Nf4+ {[%clk 0:01:52.1]} 34. Kh2 {[%clk 0:00:59]} 34... Nxh5+ {[%clk 0:01:51.3]}
35. Kg1 {[%clk 0:00:59.2]} 35... Nf4 {[%clk 0:01:50.6]} 36. Bc1 {[%clk
0:00:57.5]} 36... Kd7 {[%clk 0:01:49.2]} 37. Bd2 {[%clk 0:00:57.6]} 37... Bc7
{[%clk 0:01:47.6]} 38. Bb5+ {[%clk 0:00:51]} 38... Ke7 {[%clk 0:01:46.6]} 39.
Bc1 {[%clk 0:00:50.1]} 39... h5 {[%clk 0:01:45.6]} 40. Bc4 {[%clk 0:00:45.9]}
40... h4 {[%clk 0:01:43.1]} 41. Bf1 {[%clk 0:00:44.6]} 41... Kf6 {[%clk
0:01:40]} 42. Bd2 {[%clk 0:00:41.7]} 42... Nd5 {[%clk 0:01:38.2]} 43. Kg2 {[%clk
0:00:38.4]} 43... Bb6 {[%clk 0:01:37.3]} 44. f4 {[%clk 0:00:35.8]} 44... Nxf4+
{[%clk 0:01:34.9]} 45. Kf3 {[%clk 0:00:34.4]} 45... Nd5 {[%clk 0:01:29.7]} 46.
Bc4 {[%clk 0:00:30.3]} 46... g4+ {[%clk 0:01:27.3]} 47. Kg2 {[%clk 0:00:29]}
47... h3+ {[%clk 0:01:25.3]} 48. Kh1 {[%clk 0:00:28.2]} 48... Bxd4 {[%clk
0:01:21.5]} 49. Bxa5 {[%clk 0:00:27]} 49... Bxf2 {[%clk 0:01:21]} 50. Bd2 {[%clk
0:00:25.4]} 50... g3 {[%clk 0:01:20]} 51. Bf1 {[%clk 0:00:24.8]} 51... g2+
{[%clk 0:01:18.7]} 52. Bxg2 {[%clk 0:00:24.8]} 52... hxg2+ {[%clk 0:01:18]} 53.
Kxg2 {[%clk 0:00:25.7]} 53... Be3 {[%clk 0:01:17.1]} 54. Be1 {[%clk 0:00:23.7]}
54... e5 {[%clk 0:01:16.6]} 55. a5 {[%clk 0:00:23.4]} 55... e4 {[%clk
0:01:15.8]} 56. Kf1 {[%clk 0:00:22.6]} 56... f4 {[%clk 0:01:15.1]} 57. Ke2
{[%clk 0:00:21.8]} 57... f3+ {[%clk 0:01:14.5]} 58. Kf1 {[%clk 0:00:21.9]} 58...
Kf5 {[%clk 0:01:13.3]} 59. a6 {[%clk 0:00:21.5]} 59... Ba7 {[%clk 0:01:12.3]}
60. Bf2 {[%clk 0:00:20.7]} 60... e3 {[%clk 0:01:11.8]} 61. Bxe3 {[%clk 0:00:20]}
61... Nxe3+ {[%clk 0:01:10.9]} 0-1

[Event "Early-Titled-Tuesday-Blitz-March-19-2024"]
[Site "Chess.com"]
[Date "2024.03.19"]
[Round "1"]
[White "tarno17"]
[Black "Sadykov_Ramil"]
[Result "0-1"]
[WhiteElo "2201"]
[BlackElo "2611"]
[TimeControl "180+1"]
[EndTime "8:07:11 PDT"]
[Termination "Sadykov_Ramil won by checkmate"]

1. e4 {[%clk 0:02:59.8]} 1... c5 {[%clk 0:02:59.7]} 2. Nf3 {[%clk 0:02:58.6]}
2... e6 {[%clk 0:03:00.4]} 3. d3 {[%clk 0:02:52.7]} 3... Nc6 {[%clk 0:02:58.7]}
4. g3 {[%clk 0:02:53]} 4... d5 {[%clk 0:02:54.6]} 5. Nbd2 {[%clk 0:02:49.4]}
5... Nf6 {[%clk 0:02:46.1]} 6. Bg2 {[%clk 0:02:49.4]} 6... Be7 {[%clk
0:02:34.8]} 7. O-O {[%clk 0:02:48.4]} 7... b6 {[%clk 0:02:31]} 8. h3 {[%clk
0:02:38.9]} 8... Bb7 {[%clk 0:02:16.5]} 9. a3 {[%clk 0:02:31.6]} 9... O-O {[%clk
0:02:11.7]} 10. Re1 {[%clk 0:02:30.1]} 10... b5 {[%clk 0:02:04.1]} 11. g4 {[%clk
0:02:12.4]} 11... dxe4 {[%clk 0:02:00.7]} 12. dxe4 {[%clk 0:01:42.4]} 12... e5
{[%clk 0:01:53.9]} 13. Qe2 {[%clk 0:01:24.2]} 13... c4 {[%clk 0:01:43.3]} 14.
Nf1 {[%clk 0:01:19.8]} 14... Nd7 {[%clk 0:01:38.1]} 15. Ng3 {[%clk 0:01:17]}
15... g6 {[%clk 0:01:36.4]} 16. Bh6 {[%clk 0:01:15.9]} 16... Re8 {[%clk
0:01:36.8]} 17. Rad1 {[%clk 0:01:15.6]} 17... Qc7 {[%clk 0:01:36.8]} 18. Qe3
{[%clk 0:00:53.2]} 18... Rad8 {[%clk 0:01:21.9]} 19. h4 {[%clk 0:00:42.6]} 19...
Bc5 {[%clk 0:01:21.2]} 20. Qg5 {[%clk 0:00:30.8]} 20... f6 {[%clk 0:01:17.1]}
21. Qc1 {[%clk 0:00:25.4]} 21... Qb6 {[%clk 0:01:13.3]} 22. Rf1 {[%clk
0:00:20.5]} 22... Nf8 {[%clk 0:01:11.2]} 23. g5 {[%clk 0:00:17.7]} 23... fxg5
{[%clk 0:00:54]} 24. Nxg5 {[%clk 0:00:13.3]} 24... Nd4 {[%clk 0:00:48.7]} 25. h5
{[%clk 0:00:06.7]} 25... Qf6 {[%clk 0:00:32.5]} 26. Kh1 {[%clk 0:00:03.9]} 26...
Nfe6 {[%clk 0:00:30.1]} 27. Rde1 {[%clk 0:00:02.2]} 27... Rd6 {[%clk 0:00:25.9]}
28. c3 {[%clk 0:00:02.8]} 28... Nb3 {[%clk 0:00:24.3]} 29. Qc2 {[%clk
0:00:03.5]} 29... Rd2 {[%clk 0:00:23.8]} 30. Qb1 {[%clk 0:00:03.4]} 30... Rxf2
{[%clk 0:00:22.5]} 31. Rxf2 {[%clk 0:00:02.9]} 31... Qxf2 {[%clk 0:00:22.7]} 32.
Nxe6 {[%clk 0:00:03.2]} 32... Qxg3 {[%clk 0:00:17.8]} 33. Qd1 {[%clk 0:00:03.9]}
33... Qh4+ {[%clk 0:00:15.5]} 34. Bh3 {[%clk 0:00:01.7]} 34... Qxh3# {[%clk
0:00:15.6]} 0-1

[Event "Early-Titled-Tuesday-Blitz-March-19-2024"]
[Site "Chess.com"]
[Date "2024.03.19"]
[Round "1"]
[White "rezamahdavi2008"]
[Black "Jojo_898"]
[Result "1-0"]
[WhiteElo "2862"]
[BlackElo "2487"]
[TimeControl "180+1"]
[EndTime "8:07:15 PDT"]
[Termination "rezamahdavi2008 won by resignation"]

1. e4 {[%clk 0:02:51.4]} 1... d6 {[%clk 0:02:59.6]} 2. d4 {[%clk 0:02:50.4]}
2... Nf6 {[%clk 0:02:58.6]} 3. Nc3 {[%clk 0:02:48.2]} 3... g6 {[%clk 0:02:58.9]}
4. Be3 {[%clk 0:02:37.7]} 4... c6 {[%clk 0:02:57.6]} 5. h3 {[%clk 0:02:28.4]}
5... b5 {[%clk 0:02:57]} 6. a3 {[%clk 0:02:22.9]} 6... Bg7 {[%clk 0:02:46.5]} 7.
f4 {[%clk 0:02:21.8]} 7... O-O {[%clk 0:02:45.1]} 8. Nf3 {[%clk 0:02:13.5]} 8...
a5 {[%clk 0:02:45.3]} 9. Bd3 {[%clk 0:02:10.1]} 9... Bb7 {[%clk 0:02:45.1]} 10.
e5 {[%clk 0:01:59.8]} 10... dxe5 {[%clk 0:02:44.1]} 11. dxe5 {[%clk 0:01:46.3]}
11... Nd5 {[%clk 0:02:44.3]} 12. Nxd5 {[%clk 0:01:42.3]} 12... Qxd5 {[%clk
0:02:44.3]} 13. Qe2 {[%clk 0:01:43.1]} 13... Na6 {[%clk 0:02:36.7]} 14. Rd1
{[%clk 0:01:35.3]} 14... Qa2 {[%clk 0:02:29.3]} 15. c3 {[%clk 0:01:28.1]} 15...
Nc7 {[%clk 0:02:14.1]} 16. O-O {[%clk 0:01:17.2]} 16... Nd5 {[%clk 0:02:07.1]}
17. Bc1 {[%clk 0:00:59.3]} 17... Nb6 {[%clk 0:02:02.4]} 18. Kh1 {[%clk
0:00:53.6]} 18... Rad8 {[%clk 0:01:56.2]} 19. Be4 {[%clk 0:00:49]} 19... Na4
{[%clk 0:01:52.5]} 20. Qc2 {[%clk 0:00:39.2]} 20... Nc5 {[%clk 0:01:45.5]} 21.
Nd4 {[%clk 0:00:30.4]} 21... Nxe4 {[%clk 0:01:35.4]} 22. Qxe4 {[%clk 0:00:31.3]}
22... Ba8 {[%clk 0:01:32.5]} 23. Qc2 {[%clk 0:00:25.1]} 23... Qc4 {[%clk
0:01:11.3]} 24. b3 {[%clk 0:00:20.8]} 24... Qc5 {[%clk 0:01:11.1]} 25. Rfe1
{[%clk 0:00:18]} 25... Qa7 {[%clk 0:01:09.4]} 26. Be3 {[%clk 0:00:17]} 26... Qb7
{[%clk 0:01:09.8]} 27. Nf3 {[%clk 0:00:16.5]} 27... Qc7 {[%clk 0:01:00.8]} 28.
Bc5 {[%clk 0:00:15]} 28... Rd5 {[%clk 0:00:58.5]} 29. Rxd5 {[%clk 0:00:13.6]}
29... cxd5 {[%clk 0:00:59.4]} 30. b4 {[%clk 0:00:14.5]} 30... axb4 {[%clk
0:00:58.3]} 31. axb4 {[%clk 0:00:15.4]} 31... Bc6 {[%clk 0:00:53.5]} 32. Nd4
{[%clk 0:00:15.1]} 32... Bd7 {[%clk 0:00:54.1]} 33. Bxe7 {[%clk 0:00:13]} 33...
Ra8 {[%clk 0:00:51.5]} 34. Bc5 {[%clk 0:00:13.1]} 34... Qc8 {[%clk 0:00:49.8]}
35. Kh2 {[%clk 0:00:08.2]} 35... Ra3 {[%clk 0:00:47.8]} 36. Re3 {[%clk 0:00:07]}
36... Qa6 {[%clk 0:00:46.4]} 37. Qe2 {[%clk 0:00:07.3]} 37... Ra2 {[%clk
0:00:46.2]} 38. Qf3 {[%clk 0:00:07.8]} 38... Be6 {[%clk 0:00:42.7]} 39. f5
{[%clk 0:00:08.2]} 39... gxf5 {[%clk 0:00:36.6]} 40. Nxf5 {[%clk 0:00:09.1]}
40... Bxf5 {[%clk 0:00:36.5]} 41. Qxf5 {[%clk 0:00:10]} 41... Qg6 {[%clk
0:00:35.9]} 42. Qc8+ {[%clk 0:00:10]} 1-0

[Event "Early-Titled-Tuesday-Blitz-March-19-2024"]
[Site "Chess.com"]
[Date "2024.03.19"]
[Round "1"]
[White "bulletteemo"]
[Black "willcab71"]
[Result "1-0"]
[WhiteElo "2597"]
[BlackElo "2111"]
[TimeControl "180+1"]
[EndTime "8:07:15 PDT"]
[Termination "bulletteemo won on time"]

1. e4 {[%clk 0:03:00.9]} 1... e6 {[%clk 0:02:59.3]} 2. d4 {[%clk 0:02:54.9]}
2... d5 {[%clk 0:02:59.5]} 3. Nc3 {[%clk 0:02:53.9]} 3... Bb4 {[%clk 0:02:59.9]}
4. e5 {[%clk 0:02:54]} 4... Ne7 {[%clk 0:03:00.1]} 5. Bd2 {[%clk 0:02:53]} 5...
a6 {[%clk 0:02:49.2]} 6. a3 {[%clk 0:02:46.6]} 6... Bxc3 {[%clk 0:02:49]} 7.
Bxc3 {[%clk 0:02:47.5]} 7... c5 {[%clk 0:02:48.8]} 8. dxc5 {[%clk 0:02:42.5]}
8... Nbc6 {[%clk 0:02:45.5]} 9. Nf3 {[%clk 0:02:40.2]} 9... Ng6 {[%clk
0:02:14.4]} 10. Bd3 {[%clk 0:02:27.3]} 10... Qc7 {[%clk 0:02:13.9]} 11. Bxg6
{[%clk 0:02:21]} 11... hxg6 {[%clk 0:02:12.6]} 12. Bd4 {[%clk 0:02:16.9]} 12...
a5 {[%clk 0:02:02.8]} 13. O-O {[%clk 0:02:12.7]} 13... Bd7 {[%clk 0:01:57]} 14.
Re1 {[%clk 0:02:02.8]} 14... Rh5 {[%clk 0:01:54.1]} 15. Qd2 {[%clk 0:01:54]}
15... a4 {[%clk 0:01:33.3]} 16. Qf4 {[%clk 0:01:38.3]} 16... Rf5 {[%clk
0:00:57.8]} 17. Qh4 {[%clk 0:01:36.4]} 17... Rh5 {[%clk 0:00:57.5]} 18. Qf4
{[%clk 0:01:23.9]} 18... Rf5 {[%clk 0:00:57]} 19. Qe3 {[%clk 0:01:22.6]} 19...
Na5 {[%clk 0:00:41.9]} 20. b3 {[%clk 0:01:10.2]} 20... Kf8 {[%clk 0:00:26]} 21.
g4 {[%clk 0:01:05]} 21... Rxf3 {[%clk 0:00:20]} 22. Qxf3 {[%clk 0:01:05.9]}
22... Bc6 {[%clk 0:00:16.6]} 23. h4 {[%clk 0:00:55.4]} 23... Kg8 {[%clk
0:00:14.8]} 24. Kg2 {[%clk 0:00:54.5]} 24... Qe7 {[%clk 0:00:14.7]} 25. Qg3
{[%clk 0:00:45.9]} 25... Rc8 {[%clk 0:00:11.2]} 26. Re3 {[%clk 0:00:42.9]} 26...
Bb5 {[%clk 0:00:09.2]} 27. Qf4 {[%clk 0:00:28.2]} 27... Bc6 {[%clk 0:00:07.8]}
28. Rh1 {[%clk 0:00:19]} 28... Bb5 {[%clk 0:00:05.9]} 29. Bc3 {[%clk 0:00:16.4]}
29... d4 {[%clk 0:00:03.6]} 30. Qxd4 {[%clk 0:00:13.9]} 30... Bc6+ {[%clk
0:00:02.5]} 31. f3 {[%clk 0:00:14.5]} 31... Rd8 {[%clk 0:00:01.9]} 32. Qf4
{[%clk 0:00:12.9]} 32... Qxc5 {[%clk 0:00:01.1]} 33. b4 {[%clk 0:00:11.9]} 1-0

[Event "Early-Titled-Tuesday-Blitz-March-19-2024"]
[Site "Chess.com"]
[Date "2024.03.19"]
[Round "1"]
[White "Sina_Movahed"]
[Black "Kolle05"]
[Result "1-0"]
[WhiteElo "3088"]
[BlackElo "2569"]
[TimeControl "180+1"]
[EndTime "8:07:19 PDT"]
[Termination "Sina_Movahed won on time"]

1. e4 {[%clk 0:03:00.9]} 1... e5 {[%clk 0:02:57.8]} 2. Nf3 {[%clk 0:03:01]} 2...
Nc6 {[%clk 0:02:58.1]} 3. Bb5 {[%clk 0:03:01.7]} 3... a6 {[%clk 0:02:58]} 4. Ba4
{[%clk 0:03:01.9]} 4... Bc5 {[%clk 0:02:58.2]} 5. O-O {[%clk 0:03:02.3]} 5...
Nge7 {[%clk 0:02:58.3]} 6. c3 {[%clk 0:03:03.1]} 6... Ng6 {[%clk 0:02:58.5]} 7.
d4 {[%clk 0:03:03.6]} 7... Ba7 {[%clk 0:02:58.8]} 8. Bg5 {[%clk 0:03:04.3]} 8...
f6 {[%clk 0:02:58.7]} 9. Be3 {[%clk 0:03:04.9]} 9... O-O {[%clk 0:02:59.3]} 10.
Re1 {[%clk 0:03:05.6]} 10... Kh8 {[%clk 0:02:58.9]} 11. Nbd2 {[%clk 0:03:05.9]}
11... exd4 {[%clk 0:02:57.3]} 12. cxd4 {[%clk 0:03:05.2]} 12... d5 {[%clk
0:02:57.2]} 13. h3 {[%clk 0:02:43.5]} 13... Nb4 {[%clk 0:02:43.1]} 14. Qb3
{[%clk 0:02:06]} 14... dxe4 {[%clk 0:02:20.3]} 15. Nxe4 {[%clk 0:02:06.9]} 15...
Nd5 {[%clk 0:02:20.6]} 16. Qa3 {[%clk 0:02:07.3]} 16... Be6 {[%clk 0:02:09.5]}
17. Nc5 {[%clk 0:01:58.5]} 17... Bxc5 {[%clk 0:01:39.3]} 18. dxc5 {[%clk
0:01:59.4]} 18... Nxe3 {[%clk 0:01:39.8]} 19. Qxe3 {[%clk 0:01:51.9]} 19... Bf7
{[%clk 0:01:14.8]} 20. Rad1 {[%clk 0:01:49.5]} 20... Qc8 {[%clk 0:01:12.6]} 21.
Bd7 {[%clk 0:01:26.8]} 21... Qb8 {[%clk 0:01:12.2]} 22. h4 {[%clk 0:01:24.2]}
22... Rd8 {[%clk 0:00:48.8]} 23. h5 {[%clk 0:01:19.9]} 23... Nf8 {[%clk
0:00:48.7]} 24. Bg4 {[%clk 0:01:18.5]} 24... Rxd1 {[%clk 0:00:45.7]} 25. Rxd1
{[%clk 0:01:19.4]} 25... Qe8 {[%clk 0:00:45.7]} 26. Qf4 {[%clk 0:01:18]} 26...
Ne6 {[%clk 0:00:40.7]} 27. Bxe6 {[%clk 0:01:15.8]} 27... Qxe6 {[%clk 0:00:38.6]}
28. Qxc7 {[%clk 0:01:12.8]} 28... Bxh5 {[%clk 0:00:37.3]} 29. Qxb7 {[%clk
0:01:11.1]} 29... Re8 {[%clk 0:00:37.8]} 30. Qd7 {[%clk 0:01:02.6]} 30... Qxd7
{[%clk 0:00:03.4]} 31. Rxd7 {[%clk 0:01:01.9]} 31... h6 {[%clk 0:00:04]} 32. Nd4
{[%clk 0:00:58.4]} 32... Re1+ {[%clk 0:00:02.6]} 33. Kh2 {[%clk 0:00:58.4]}
33... Rc1 {[%clk 0:00:03.1]} 34. c6 {[%clk 0:00:50.6]} 34... Bg4 {[%clk
0:00:02.8]} 35. Rd8+ {[%clk 0:00:50.8]} 35... Kh7 {[%clk 0:00:03.4]} 36. f3
{[%clk 0:00:49.1]} 36... Bh5 {[%clk 0:00:02.6]} 37. b4 {[%clk 0:00:43]} 37...
Rc4 {[%clk 0:00:02]} 38. a3 {[%clk 0:00:43]} 38... Bf7 {[%clk 0:00:02.4]} 39.
Rd7 {[%clk 0:00:30.7]} 39... Be8 {[%clk 0:00:02.6]} 40. Ne6 {[%clk 0:00:31.4]}
1-0

[Event "Early-Titled-Tuesday-Blitz-March-19-2024"]
[Site "Chess.com"]
[Date "2024.03.19"]
[Round "1"]
[White "aksuliini1"]
[Black "Alenzer"]
[Result "1-0"]
[WhiteElo "2605"]
[BlackElo "2156"]
[TimeControl "180+1"]
[EndTime "8:07:19 PDT"]
[Termination "aksuliini1 won by checkmate"]

1. Nf3 {[%clk 0:02:59.3]} 1... d5 {[%clk 0:02:58.9]} 2. d4 {[%clk 0:02:55.2]}
2... e6 {[%clk 0:02:57.2]} 3. c4 {[%clk 0:02:54.8]} 3... c5 {[%clk 0:02:53.2]}
4. cxd5 {[%clk 0:02:50.2]} 4... exd5 {[%clk 0:02:53.5]} 5. Nc3 {[%clk
0:02:49.2]} 5... Nf6 {[%clk 0:02:53]} 6. Bg5 {[%clk 0:02:44]} 6... cxd4 {[%clk
0:02:46]} 7. Nxd4 {[%clk 0:02:43.1]} 7... Be6 {[%clk 0:02:44.5]} 8. Nxe6 {[%clk
0:02:32.6]} 8... fxe6 {[%clk 0:02:45.4]} 9. e3 {[%clk 0:02:30.4]} 9... Nc6
{[%clk 0:02:44.7]} 10. Bd3 {[%clk 0:02:28.5]} 10... Be7 {[%clk 0:02:38.7]} 11.
O-O {[%clk 0:02:26.9]} 11... O-O {[%clk 0:02:37.8]} 12. Rc1 {[%clk 0:02:12.4]}
12... e5 {[%clk 0:02:37.2]} 13. Bxf6 {[%clk 0:02:10.3]} 13... Bxf6 {[%clk
0:02:38.1]} 14. Nxd5 {[%clk 0:02:10.4]} 14... Kh8 {[%clk 0:02:31.6]} 15. Be4
{[%clk 0:02:08.8]} 15... Rc8 {[%clk 0:02:24]} 16. b4 {[%clk 0:02:07.5]} 16... a6
{[%clk 0:02:12.6]} 17. Qb3 {[%clk 0:02:04.5]} 17... b5 {[%clk 0:02:10.5]} 18.
Rfd1 {[%clk 0:02:01.8]} 18... Qe8 {[%clk 0:02:01.8]} 19. a3 {[%clk 0:01:47]}
19... a5 {[%clk 0:01:54.9]} 20. Qd3 {[%clk 0:01:46]} 20... axb4 {[%clk
0:01:51.2]} 21. Bxh7 {[%clk 0:01:41.2]} 21... Qh5 {[%clk 0:01:37.1]} 22. Bg6
{[%clk 0:01:36.7]} 22... Qh6 {[%clk 0:01:30.8]} 23. axb4 {[%clk 0:01:31.3]}
23... Bh4 {[%clk 0:01:17.1]} 24. g3 {[%clk 0:01:28.8]} 24... Bxg3 {[%clk
0:00:19.7]} 25. hxg3 {[%clk 0:01:19.5]} 25... Rxf2 {[%clk 0:00:19.3]} 26. Kxf2
{[%clk 0:01:19.7]} 26... Qh2+ {[%clk 0:00:19.7]} 27. Ke1 {[%clk 0:00:55.8]}
27... Rf8 {[%clk 0:00:20.6]} 28. Bf5 {[%clk 0:00:38.5]} 28... g6 {[%clk
0:00:06.5]} 29. Rxc6 {[%clk 0:00:32.3]} 29... Rxf5 {[%clk 0:00:02.9]} 30. Nf4
{[%clk 0:00:32.1]} 30... Qg1+ {[%clk 0:00:01.4]} 31. Kd2 {[%clk 0:00:29.9]}
31... Qxg3 {[%clk 0:00:02.3]} 32. Nxg6+ {[%clk 0:00:29]} 32... Kg7 {[%clk
0:00:03.2]} 33. Qxf5 {[%clk 0:00:28.8]} 33... Qf2+ {[%clk 0:00:03.3]} 34. Kd3
{[%clk 0:00:29]} 34... Kg8 {[%clk 0:00:03.9]} 35. Rc8+ {[%clk 0:00:28.3]} 35...
Kg7 {[%clk 0:00:04.2]} 36. Rc7+ {[%clk 0:00:28.8]} 36... Kh6 {[%clk 0:00:04.6]}
37. Rh1+ {[%clk 0:00:28.2]} 37... Qh4 {[%clk 0:00:03]} 38. Rxh4# {[%clk
0:00:28.3]} 1-0

[Event "Early-Titled-Tuesday-Blitz-March-19-2024"]
[Site "Chess.com"]
[Date "2024.03.19"]
[Round "1"]
[White "RandomNoob04"]
[Black "javierfreilemartin"]
[Result "1-0"]
[WhiteElo "2660"]
[BlackElo "2309"]
[TimeControl "180+1"]
[EndTime "8:07:20 PDT"]
[Termination "RandomNoob04 won by resignation"]

1. e4 {[%clk 0:03:00.4]} 1... c5 {[%clk 0:02:59.6]} 2. d4 {[%clk 0:03:01]} 2...
cxd4 {[%clk 0:02:58.8]} 3. c3 {[%clk 0:03:01.6]} 3... d3 {[%clk 0:02:58.7]} 4.
Bxd3 {[%clk 0:03:01.3]} 4... e6 {[%clk 0:02:58.7]} 5. Nf3 {[%clk 0:03:02.2]}
5... d6 {[%clk 0:02:57.3]} 6. O-O {[%clk 0:03:01.3]} 6... a6 {[%clk 0:02:57.5]}
7. c4 {[%clk 0:03:01.4]} 7... Nd7 {[%clk 0:02:56.4]} 8. Nc3 {[%clk 0:03:01.5]}
8... Ngf6 {[%clk 0:02:56.1]} 9. h3 {[%clk 0:03:01.9]} 9... b6 {[%clk 0:02:55.8]}
10. Bf4 {[%clk 0:03:01.5]} 10... Bb7 {[%clk 0:02:54.9]} 11. Qe2 {[%clk
0:03:01.6]} 11... Qc7 {[%clk 0:02:52.6]} 12. Rfd1 {[%clk 0:03:00.4]} 12... Be7
{[%clk 0:02:49.7]} 13. Rd2 {[%clk 0:02:41.8]} 13... O-O {[%clk 0:02:47.2]} 14.
Rad1 {[%clk 0:02:42.4]} 14... Ne5 {[%clk 0:02:30.1]} 15. Nxe5 {[%clk 0:02:20.3]}
15... dxe5 {[%clk 0:02:29.3]} 16. Bg5 {[%clk 0:02:21]} 16... h6 {[%clk
0:02:27.7]} 17. Bh4 {[%clk 0:02:20.6]} 17... Rfd8 {[%clk 0:02:22]} 18. Bc2
{[%clk 0:02:07.2]} 18... Rxd2 {[%clk 0:02:19.6]} 19. Rxd2 {[%clk 0:02:08.1]}
19... Rc8 {[%clk 0:02:18.1]} 20. b3 {[%clk 0:02:07.8]} 20... b5 {[%clk
0:02:17.9]} 21. Bd3 {[%clk 0:02:08]} 21... b4 {[%clk 0:02:16.8]} 22. Na4 {[%clk
0:02:06.4]} 22... a5 {[%clk 0:02:16.7]} 23. Bc2 {[%clk 0:01:57.9]} 23... Bc6
{[%clk 0:01:43.6]} 24. Nb2 {[%clk 0:01:56.3]} 24... Qb7 {[%clk 0:01:39.8]} 25.
f3 {[%clk 0:01:52.5]} 25... Nh5 {[%clk 0:01:37.4]} 26. Bxe7 {[%clk 0:01:47.5]}
26... Qxe7 {[%clk 0:01:37.1]} 27. Nd3 {[%clk 0:01:47.9]} 27... Rd8 {[%clk
0:01:35]} 28. Qe3 {[%clk 0:01:46.1]} 28... Qf6 {[%clk 0:01:29.9]} 29. Qb6 {[%clk
0:01:26.3]} 29... Qg5 {[%clk 0:01:25.1]} 30. Rf2 {[%clk 0:00:47.1]} 30... Be8
{[%clk 0:00:50]} 31. Qxa5 {[%clk 0:00:46]} 31... Rxd3 {[%clk 0:00:44.9]} 32.
Bxd3 {[%clk 0:00:45.6]} 32... Nf4 {[%clk 0:00:45.1]} 33. h4 {[%clk 0:00:22.3]}
33... Qxh4 {[%clk 0:00:41.2]} 34. Bf1 {[%clk 0:00:20.7]} 34... Qg5 {[%clk
0:00:39.3]} 35. g4 {[%clk 0:00:12.3]} 35... h5 {[%clk 0:00:37.4]} 36. Qa8 {[%clk
0:00:09.7]} 36... Kf8 {[%clk 0:00:37.2]} 37. Rh2 {[%clk 0:00:05.8]} 37... hxg4
{[%clk 0:00:37]} 38. Rh8+ {[%clk 0:00:06]} 38... Ke7 {[%clk 0:00:36.1]} 39.
Rxe8+ {[%clk 0:00:06.9]} 39... Kd6 {[%clk 0:00:36]} 40. Qd8+ {[%clk 0:00:07.3]}
40... Kc5 {[%clk 0:00:35.9]} 41. Qxg5 {[%clk 0:00:07.3]} 41... gxf3 {[%clk
0:00:33.2]} 42. Qxe5+ {[%clk 0:00:07.3]} 42... Kb6 {[%clk 0:00:32.9]} 43. Qxf4
{[%clk 0:00:08.2]} 43... f6 {[%clk 0:00:30.9]} 44. Qe3+ {[%clk 0:00:08.3]} 44...
Kc7 {[%clk 0:00:29.9]} 45. Qxf3 {[%clk 0:00:09.2]} 45... e5 {[%clk 0:00:29.6]}
46. Rg8 {[%clk 0:00:10.1]} 46... Kd6 {[%clk 0:00:29.3]} 47. Rxg7 {[%clk
0:00:11]} 47... Kc5 {[%clk 0:00:28.9]} 48. Qe3+ {[%clk 0:00:11.2]} 1-0